[Event "Early-Titled-Tuesday-Blitz-April-16-2024"]
[Site "Chess.com"]
[Date "2024.04.16"]
[Round "3"]
[White "2Coaches1Profile"]
[Black "AlexeiShirov"]
[Result "1/2-1/2"]
[WhiteElo "2540"]
[BlackElo "2824"]
[TimeControl "180+1"]
[EndTime "8:29:39 PDT"]
[Termination "Game drawn - insufficient material"]

1. d4 {[%clk 0:03:00.9]} 1... d5 {[%clk 0:02:59.5]} 2. Nf3 {[%clk 0:02:58.9]}
2... Nf6 {[%clk 0:02:58.7]} 3. Nbd2 {[%clk 0:02:55.2]} 3... e6 {[%clk
0:02:53.5]} 4. e3 {[%clk 0:02:55.5]} 4... c5 {[%clk 0:02:52.6]} 5. c3 {[%clk
0:02:55.7]} 5... Nc6 {[%clk 0:02:51.4]} 6. Bd3 {[%clk 0:02:55.6]} 6... Bd6
{[%clk 0:02:41.2]} 7. O-O {[%clk 0:02:51.2]} 7... e5 {[%clk 0:02:37.5]} 8. dxc5
{[%clk 0:02:51.6]} 8... Bxc5 {[%clk 0:02:35.1]} 9. e4 {[%clk 0:02:51.9]} 9...
Be6 {[%clk 0:02:30.1]} 10. Qe2 {[%clk 0:02:41.3]} 10... O-O {[%clk 0:02:27.7]}
11. exd5 {[%clk 0:02:06.9]} 11... Bxd5 {[%clk 0:02:26.5]} 12. Ne4 {[%clk
0:01:30.5]} 12... Nxe4 {[%clk 0:02:19.4]} 13. Bxe4 {[%clk 0:01:31.4]} 13... f5
{[%clk 0:02:17.5]} 14. Bxd5+ {[%clk 0:01:28.2]} 14... Qxd5 {[%clk 0:02:15.2]}
15. Rd1 {[%clk 0:01:16.4]} 15... Qe6 {[%clk 0:02:07.7]} 16. Nd4 {[%clk
0:00:18.3]} 16... Bxd4 {[%clk 0:02:02.6]} 17. cxd4 {[%clk 0:00:18]} 17... Rfd8
{[%clk 0:01:58.4]} 18. dxe5 {[%clk 0:00:16.9]} 18... Nd4 {[%clk 0:01:57.1]} 19.
Qf1 {[%clk 0:00:12.8]} 19... Rd5 {[%clk 0:01:47.9]} 20. Be3 {[%clk 0:00:10.5]}
20... Rad8 {[%clk 0:01:35.5]} 21. Bxd4 {[%clk 0:00:07.5]} 21... Rxd4 {[%clk
0:01:35]} 22. Rxd4 {[%clk 0:00:08.4]} 22... Rxd4 {[%clk 0:01:34.6]} 23. Rd1
{[%clk 0:00:09.3]} 23... Qxe5 {[%clk 0:01:30.7]} 24. Rxd4 {[%clk 0:00:07.3]}
24... Qxd4 {[%clk 0:01:30.2]} 25. Qe2 {[%clk 0:00:07.7]} 25... h6 {[%clk
0:01:27]} 26. g3 {[%clk 0:00:08]} 26... Kh7 {[%clk 0:01:25.8]} 27. Qc2 {[%clk
0:00:07.5]} 27... Qe4 {[%clk 0:01:20.9]} 28. Qxe4 {[%clk 0:00:06.5]} 28... fxe4
{[%clk 0:01:20.3]} 29. Kf1 {[%clk 0:00:07.4]} 29... Kg6 {[%clk 0:01:20.2]} 30.
Ke2 {[%clk 0:00:08.1]} 30... Kf5 {[%clk 0:01:19.6]} 31. Ke3 {[%clk 0:00:09]}
31... Ke5 {[%clk 0:01:19]} 32. h4 {[%clk 0:00:08.7]} 32... h5 {[%clk 0:01:18.2]}
33. a3 {[%clk 0:00:08.9]} 33... a6 {[%clk 0:01:17.2]} 34. b3 {[%clk 0:00:09.3]}
34... b6 {[%clk 0:01:16.6]} 35. f3 {[%clk 0:00:08.1]} 35... exf3 {[%clk
0:01:15.6]} 36. Kxf3 {[%clk 0:00:09]} 36... Kf5 {[%clk 0:01:03.9]} 37. Ke3
{[%clk 0:00:08.9]} 37... Kg4 {[%clk 0:01:02.3]} 38. Kf2 {[%clk 0:00:09.3]} 38...
b5 {[%clk 0:00:58.4]} 39. a4 {[%clk 0:00:08.7]} 39... b4 {[%clk 0:00:55.4]} 40.
Kg2 {[%clk 0:00:08.3]} 40... Kf5 {[%clk 0:00:42.1]} 41. Kf3 {[%clk 0:00:08.2]}
41... Ke5 {[%clk 0:00:37.3]} 42. Ke3 {[%clk 0:00:08.6]} 42... Kf5 {[%clk
0:00:33.5]} 43. Kf3 {[%clk 0:00:08.7]} 43... g6 {[%clk 0:00:32.3]} 44. Ke3
{[%clk 0:00:08.6]} 44... Kg4 {[%clk 0:00:32.1]} 45. Kf2 {[%clk 0:00:09.2]} 45...
g5 {[%clk 0:00:31.1]} 46. hxg5 {[%clk 0:00:09.2]} 46... Kxg5 {[%clk 0:00:30.9]}
47. Kf3 {[%clk 0:00:09.7]} 47... Kf5 {[%clk 0:00:29.8]} 48. Ke3 {[%clk
0:00:09.2]} 48... Kg4 {[%clk 0:00:29.1]} 49. Kf2 {[%clk 0:00:09.4]} 49... a5
{[%clk 0:00:19]} 50. Kg2 {[%clk 0:00:09.3]} 50... h4 {[%clk 0:00:18.3]} 51. gxh4
{[%clk 0:00:10.2]} 51... Kxh4 {[%clk 0:00:18.3]} 52. Kf3 {[%clk 0:00:10.9]}
52... Kg5 {[%clk 0:00:18.4]} 53. Ke4 {[%clk 0:00:11.3]} 53... Kg4 {[%clk
0:00:16.6]} 54. Ke3 {[%clk 0:00:10.7]} 54... Kf5 {[%clk 0:00:16.4]} 55. Kd4
{[%clk 0:00:09.7]} 55... Kf4 {[%clk 0:00:16.2]} 56. Kc5 {[%clk 0:00:09.5]} 56...
Ke4 {[%clk 0:00:15.9]} 57. Kb5 {[%clk 0:00:10.2]} 57... Kd4 {[%clk 0:00:15.8]}
58. Kxa5 {[%clk 0:00:11.1]} 58... Kc3 {[%clk 0:00:15.9]} 59. Kb5 {[%clk
0:00:10.3]} 59... Kxb3 {[%clk 0:00:15.9]} 60. a5 {[%clk 0:00:11.2]} 60... Kc3
{[%clk 0:00:16]} 61. a6 {[%clk 0:00:12.1]} 61... b3 {[%clk 0:00:16.2]} 62. a7
{[%clk 0:00:12.7]} 62... b2 {[%clk 0:00:16.1]} 63. a8=Q {[%clk 0:00:13.3]} 63...
b1=Q+ {[%clk 0:00:16.1]} 64. Ka6 {[%clk 0:00:13.2]} 64... Qa2+ {[%clk
0:00:15.8]} 65. Kb7 {[%clk 0:00:14.1]} 65... Qxa8+ {[%clk 0:00:15.5]} 66. Kxa8
{[%clk 0:00:14.3]} 1/2-1/2

[Event "Early-Titled-Tuesday-Blitz-April-16-2024"]
[Site "Chess.com"]
[Date "2024.04.16"]
[Round "3"]
[White "atalz0"]
[Black "sathvikadiga"]
[Result "1-0"]
[WhiteElo "2437"]
[BlackElo "2587"]
[TimeControl "180+1"]
[EndTime "8:29:45 PDT"]
[Termination "atalz0 won by checkmate"]

1. d4 {[%clk 0:03:00.9]} 1... Nf6 {[%clk 0:02:59.4]} 2. c4 {[%clk 0:03:00.3]}
2... g6 {[%clk 0:03:00.3]} 3. f3 {[%clk 0:03:00.2]} 3... d6 {[%clk 0:02:59.8]}
4. e4 {[%clk 0:03:00.4]} 4... Bg7 {[%clk 0:03:00]} 5. Be3 {[%clk 0:03:01]} 5...
O-O {[%clk 0:03:00]} 6. Nc3 {[%clk 0:03:01.5]} 6... Nc6 {[%clk 0:03:00.4]} 7.
Qd2 {[%clk 0:03:00.8]} 7... a6 {[%clk 0:03:00.8]} 8. O-O-O {[%clk 0:03:00.1]}
8... Rb8 {[%clk 0:03:00.7]} 9. h4 {[%clk 0:02:58.4]} 9... e5 {[%clk 0:02:58.9]}
10. d5 {[%clk 0:02:58.6]} 10... Ne7 {[%clk 0:02:57.9]} 11. h5 {[%clk 0:02:50.6]}
11... b5 {[%clk 0:02:36.1]} 12. h6 {[%clk 0:02:27.5]} 12... Bh8 {[%clk
0:02:35.3]} 13. g4 {[%clk 0:02:20.2]} 13... Nd7 {[%clk 0:02:31.6]} 14. cxb5
{[%clk 0:02:11.2]} 14... axb5 {[%clk 0:02:32.5]} 15. Bxb5 {[%clk 0:02:11.6]}
15... Nc5 {[%clk 0:02:27.5]} 16. Nge2 {[%clk 0:02:08]} 16... Bd7 {[%clk
0:02:27]} 17. Bc4 {[%clk 0:02:02.7]} 17... Qc8 {[%clk 0:02:20.8]} 18. Bxc5
{[%clk 0:01:47.9]} 18... dxc5 {[%clk 0:02:21.7]} 19. d6 {[%clk 0:01:48.1]} 19...
cxd6 {[%clk 0:01:27.1]} 20. Qxd6 {[%clk 0:01:49]} 20... Be6 {[%clk 0:00:57]} 21.
Ba6 {[%clk 0:01:29.3]} 21... Qe8 {[%clk 0:00:55.4]} 22. Rd2 {[%clk 0:01:17.7]}
22... Nc6 {[%clk 0:00:28.1]} 23. Bb5 {[%clk 0:00:53]} 23... Rxb5 {[%clk
0:00:24.5]} 24. Nxb5 {[%clk 0:00:53.9]} 24... Nd4 {[%clk 0:00:23.1]} 25. Nc7
{[%clk 0:00:49.2]} 25... Qa4 {[%clk 0:00:19.3]} 26. Nxd4 {[%clk 0:00:49]} 26...
cxd4 {[%clk 0:00:06.8]} 27. Nxe6 {[%clk 0:00:48]} 27... Rc8+ {[%clk 0:00:02.2]}
28. Kb1 {[%clk 0:00:45.5]} 28... Ra8 {[%clk 0:00:01.9]} 29. a3 {[%clk
0:00:41.3]} 29... Qa5 {[%clk 0:00:02.1]} 30. Rc2 {[%clk 0:00:34.8]} 30... fxe6
{[%clk 0:00:02.8]} 31. Qxe6+ {[%clk 0:00:33.5]} 31... Kf8 {[%clk 0:00:03.7]} 32.
Rhc1 {[%clk 0:00:30.8]} 32... Re8 {[%clk 0:00:03.2]} 33. Rc8 {[%clk 0:00:30.2]}
33... Qb5 {[%clk 0:00:03.9]} 34. Rxe8+ {[%clk 0:00:28.5]} 34... Qxe8 {[%clk
0:00:04.8]} 35. Qxe8+ {[%clk 0:00:28.8]} 35... Kxe8 {[%clk 0:00:04.9]} 36. Rc8+
{[%clk 0:00:29.5]} 36... Kf7 {[%clk 0:00:05.8]} 37. Rxh8 {[%clk 0:00:30.2]}
37... Kf6 {[%clk 0:00:06.5]} 38. Rxh7 {[%clk 0:00:29.8]} 38... Kg5 {[%clk
0:00:07.4]} 39. Rh8 {[%clk 0:00:29.6]} 39... d3 {[%clk 0:00:05.8]} 40. Kc1
{[%clk 0:00:29.2]} 40... d2+ {[%clk 0:00:05.9]} 41. Kxd2 {[%clk 0:00:28.9]}
41... Kf6 {[%clk 0:00:06.8]} 42. Rg8 {[%clk 0:00:28.2]} 42... Kg5 {[%clk
0:00:07.7]} 43. h7 {[%clk 0:00:28.4]} 43... Kf4 {[%clk 0:00:08.5]} 44. h8=Q
{[%clk 0:00:28.3]} 44... Kg3 {[%clk 0:00:09.4]} 45. Qxe5+ {[%clk 0:00:28.2]}
45... Kh3 {[%clk 0:00:09.5]} 46. Rh8+ {[%clk 0:00:28]} 46... Kg2 {[%clk
0:00:09.4]} 47. Qh2+ {[%clk 0:00:28]} 47... Kf1 {[%clk 0:00:09.7]} 48. Qh1+
{[%clk 0:00:28.3]} 48... Kf2 {[%clk 0:00:09.9]} 49. Rh2+ {[%clk 0:00:29]} 49...
Kg3 {[%clk 0:00:09.8]} 50. Qg2+ {[%clk 0:00:26.1]} 50... Kf4 {[%clk 0:00:09.9]}
51. g5 {[%clk 0:00:23.8]} 51... Ke5 {[%clk 0:00:09.8]} 52. Qg3+ {[%clk 0:00:24]}
52... Kd4 {[%clk 0:00:09.9]} 53. Qd6+ {[%clk 0:00:23.5]} 53... Kc4 {[%clk
0:00:10.5]} 54. Ke3 {[%clk 0:00:23.2]} 54... Kb3 {[%clk 0:00:09.2]} 55. Qd3+
{[%clk 0:00:22.4]} 55... Ka4 {[%clk 0:00:06.7]} 56. Rc2 {[%clk 0:00:21.2]} 56...
Ka5 {[%clk 0:00:06.5]} 57. Rc4 {[%clk 0:00:21]} 57... Kb6 {[%clk 0:00:06.8]} 58.
Qb3+ {[%clk 0:00:20.1]} 58... Ka6 {[%clk 0:00:06.3]} 59. Ra4# {[%clk 0:00:20.8]}
1-0

[Event "Early-Titled-Tuesday-Blitz-April-16-2024"]
[Site "Chess.com"]
[Date "2024.04.16"]
[Round "3"]
[White "MdChess1734"]
[Black "vasblesk"]
[Result "0-1"]
[WhiteElo "2372"]
[BlackElo "2826"]
[TimeControl "180+1"]
[EndTime "8:29:47 PDT"]
[Termination "vasblesk won on time"]

1. e4 {[%clk 0:03:00.9]} 1... c5 {[%clk 0:02:57.8]} 2. Nf3 {[%clk 0:02:58.9]}
2... g6 {[%clk 0:02:57.6]} 3. d4 {[%clk 0:02:55.2]} 3... cxd4 {[%clk 0:02:57.2]}
4. Nxd4 {[%clk 0:02:55.8]} 4... Bg7 {[%clk 0:02:57]} 5. Nc3 {[%clk 0:02:52.9]}
5... Nc6 {[%clk 0:02:55.8]} 6. Be3 {[%clk 0:02:51]} 6... Nf6 {[%clk 0:02:52.3]}
7. Bc4 {[%clk 0:02:48.5]} 7... Qa5 {[%clk 0:02:51.7]} 8. O-O {[%clk 0:02:47.5]}
8... O-O {[%clk 0:02:49.2]} 9. Bb3 {[%clk 0:02:46.9]} 9... d6 {[%clk 0:02:47.7]}
10. h3 {[%clk 0:02:44]} 10... Bd7 {[%clk 0:02:45.5]} 11. f4 {[%clk 0:02:42.4]}
11... Nxd4 {[%clk 0:02:36.2]} 12. Bxd4 {[%clk 0:02:41.4]} 12... Bc6 {[%clk
0:02:36.7]} 13. Qd3 {[%clk 0:02:41.3]} 13... Rad8 {[%clk 0:02:29.7]} 14. Rae1
{[%clk 0:02:38.4]} 14... e5 {[%clk 0:02:26]} 15. Be3 {[%clk 0:02:34.4]} 15... d5
{[%clk 0:02:17.5]} 16. exd5 {[%clk 0:02:05.6]} 16... Bxd5 {[%clk 0:02:14.8]} 17.
Nxd5 {[%clk 0:02:02.2]} 17... Nxd5 {[%clk 0:02:15.7]} 18. fxe5 {[%clk
0:02:00.4]} 18... Bxe5 {[%clk 0:01:59.4]} 19. Bxd5 {[%clk 0:01:32.2]} 19... Rxd5
{[%clk 0:01:55.4]} 20. Qb3 {[%clk 0:01:13.9]} 20... Rb5 {[%clk 0:01:50.3]} 21.
Qc4 {[%clk 0:01:13.1]} 21... Bxb2 {[%clk 0:01:33.8]} 22. Bh6 {[%clk 0:01:06.9]}
22... Rf5 {[%clk 0:00:42.9]} 23. Bxf8 {[%clk 0:01:05]} 23... Kxf8 {[%clk
0:00:42]} 24. Rxf5 {[%clk 0:00:54.5]} 24... Qxe1+ {[%clk 0:00:37.1]} 25. Rf1
{[%clk 0:00:54.3]} 25... Qe7 {[%clk 0:00:34.5]} 26. c3 {[%clk 0:00:32.4]} 26...
Ba3 {[%clk 0:00:33.1]} 27. Qf4 {[%clk 0:00:27.4]} 27... Bd6 {[%clk 0:00:26.4]}
28. Qh6+ {[%clk 0:00:25.7]} 28... Kg8 {[%clk 0:00:26.5]} 29. Qd2 {[%clk
0:00:20.4]} 29... Qe5 {[%clk 0:00:23.6]} 30. Rd1 {[%clk 0:00:20.3]} 30... Qh2+
{[%clk 0:00:22.7]} 31. Kf2 {[%clk 0:00:18.6]} 31... Qg3+ {[%clk 0:00:18.4]} 32.
Kf1 {[%clk 0:00:17.9]} 32... Be5 {[%clk 0:00:16.3]} 33. c4 {[%clk 0:00:14]}
33... b6 {[%clk 0:00:16.7]} 34. Qf2 {[%clk 0:00:11.8]} 34... Qc3 {[%clk
0:00:16.7]} 35. Qe2 {[%clk 0:00:11.2]} 35... Kg7 {[%clk 0:00:16.8]} 36. Re1
{[%clk 0:00:08.5]} 36... Bf6 {[%clk 0:00:16.2]} 37. Kg1 {[%clk 0:00:08]} 37...
Qd4+ {[%clk 0:00:15]} 38. Kh1 {[%clk 0:00:07.5]} 38... Qd6 {[%clk 0:00:14.5]}
39. Rf1 {[%clk 0:00:07.6]} 39... Qc6 {[%clk 0:00:14.3]} 40. Qf3 {[%clk
0:00:06.9]} 40... Qd6 {[%clk 0:00:14.7]} 41. Rd1 {[%clk 0:00:06.1]} 41... Qc7
{[%clk 0:00:14.2]} 42. Rf1 {[%clk 0:00:06]} 42... Be5 {[%clk 0:00:14.4]} 43. Qd5
{[%clk 0:00:06.2]} 43... h5 {[%clk 0:00:11]} 44. Re1 {[%clk 0:00:05.8]} 44...
Bf6 {[%clk 0:00:09.9]} 45. Rd1 {[%clk 0:00:06]} 45... Qf4 {[%clk 0:00:09.5]} 46.
c5 {[%clk 0:00:01.2]} 46... Be5 {[%clk 0:00:09.2]} 47. Kg1 {[%clk 0:00:01.8]}
47... Qe3+ {[%clk 0:00:09.6]} 48. Kf1 {[%clk 0:00:02]} 48... bxc5 {[%clk
0:00:10.3]} 49. Qd3 {[%clk 0:00:01.8]} 49... Qf4+ {[%clk 0:00:09.5]} 50. Qf3
{[%clk 0:00:02.4]} 50... Qc4+ {[%clk 0:00:09.8]} 51. Kg1 {[%clk 0:00:02.9]}
51... Bd4+ {[%clk 0:00:08.9]} 52. Kh1 {[%clk 0:00:02.5]} 52... Qxa2 {[%clk
0:00:09.3]} 53. Rf1 {[%clk 0:00:02.8]} 53... Qe6 {[%clk 0:00:09.1]} 54. Rb1
{[%clk 0:00:01.3]} 54... a5 {[%clk 0:00:09.1]} 0-1

[Event "Early-Titled-Tuesday-Blitz-April-16-2024"]
[Site "Chess.com"]
[Date "2024.04.16"]
[Round "3"]
[White "wannabe2700"]
[Black "chess_blitz00"]
[Result "0-1"]
[WhiteElo "2640"]
[BlackElo "2509"]
[TimeControl "180+1"]
[EndTime "8:29:47 PDT"]
[Termination "chess_blitz00 won by resignation"]

1. b3 {[%clk 0:03:00.9]} 1... d6 {[%clk 0:02:54.9]} 2. Bb2 {[%clk 0:03:01.8]}
2... Nf6 {[%clk 0:02:55.3]} 3. d4 {[%clk 0:03:01.9]} 3... g6 {[%clk 0:02:54.7]}
4. Nc3 {[%clk 0:03:01.6]} 4... Bg7 {[%clk 0:02:53.3]} 5. e4 {[%clk 0:03:01.7]}
5... O-O {[%clk 0:02:54]} 6. Qd2 {[%clk 0:03:01.9]} 6... e5 {[%clk 0:02:52.4]}
7. O-O-O {[%clk 0:02:45.1]} 7... Nc6 {[%clk 0:02:44.1]} 8. dxe5 {[%clk
0:02:44.3]} 8... dxe5 {[%clk 0:02:44.1]} 9. Qxd8 {[%clk 0:02:43.7]} 9... Rxd8
{[%clk 0:02:45]} 10. Rxd8+ {[%clk 0:02:11.3]} 10... Nxd8 {[%clk 0:02:44.9]} 11.
f3 {[%clk 0:02:12.2]} 11... c6 {[%clk 0:02:38.5]} 12. Na4 {[%clk 0:02:10.9]}
12... Nd7 {[%clk 0:02:00]} 13. g3 {[%clk 0:02:11.1]} 13... Ne6 {[%clk
0:01:59.4]} 14. h4 {[%clk 0:02:07.3]} 14... h5 {[%clk 0:01:26.9]} 15. Nh3 {[%clk
0:02:07.2]} 15... Nd4 {[%clk 0:01:15.2]} 16. f4 {[%clk 0:01:52.7]} 16... Nf8
{[%clk 0:01:00.6]} 17. Nf2 {[%clk 0:01:52.2]} 17... Nfe6 {[%clk 0:00:50]} 18.
Nd3 {[%clk 0:01:51.6]} 18... b6 {[%clk 0:00:39]} 19. Nxe5 {[%clk 0:01:47.4]}
19... Bxe5 {[%clk 0:00:39]} 20. fxe5 {[%clk 0:01:48.3]} 20... c5 {[%clk
0:00:38.7]} 21. Nc3 {[%clk 0:01:43.4]} 21... Bb7 {[%clk 0:00:38.4]} 22. Nd5
{[%clk 0:01:43.9]} 22... Rd8 {[%clk 0:00:33.8]} 23. c3 {[%clk 0:01:26.9]} 23...
Nf3 {[%clk 0:00:30.3]} 24. c4 {[%clk 0:01:27]} 24... Nfd4 {[%clk 0:00:24.3]} 25.
Kd2 {[%clk 0:01:19.6]} 25... Nc6 {[%clk 0:00:23.1]} 26. Bh3 {[%clk 0:01:15.2]}
26... Ned4 {[%clk 0:00:22]} 27. Kd3 {[%clk 0:01:05.1]} 27... Nxe5+ {[%clk
0:00:21.9]} 28. Ke3 {[%clk 0:00:59.5]} 28... Nec6 {[%clk 0:00:17.3]} 29. Rf1
{[%clk 0:00:58.7]} 29... Kg7 {[%clk 0:00:13.3]} 30. Rf2 {[%clk 0:00:57.8]} 30...
Re8 {[%clk 0:00:13.4]} 31. Kd3 {[%clk 0:00:56.9]} 31... Bc8 {[%clk 0:00:13.5]}
32. Bxc8 {[%clk 0:00:45.8]} 32... Rxc8 {[%clk 0:00:14.4]} 33. b4 {[%clk
0:00:46.6]} 33... Ne5+ {[%clk 0:00:14.6]} 34. Kc3 {[%clk 0:00:46.3]} 34... Ndc6
{[%clk 0:00:10.5]} 35. a3 {[%clk 0:00:45.8]} 35... Re8 {[%clk 0:00:08.5]} 36.
Kb3 {[%clk 0:00:43.1]} 36... Re6 {[%clk 0:00:07.1]} 37. Ka4 {[%clk 0:00:36.9]}
37... Nd4 {[%clk 0:00:07.1]} 38. Bxd4 {[%clk 0:00:27.9]} 38... cxd4 {[%clk
0:00:08]} 39. c5 {[%clk 0:00:28.3]} 39... bxc5 {[%clk 0:00:07.3]} 40. bxc5
{[%clk 0:00:29.2]} 40... Nd3 {[%clk 0:00:05.7]} 41. Rc2 {[%clk 0:00:28.3]} 41...
Rxe4 {[%clk 0:00:04.2]} 42. c6 {[%clk 0:00:28.6]} 42... Re8 {[%clk 0:00:04]} 43.
c7 {[%clk 0:00:28.4]} 43... Rc8 {[%clk 0:00:03.5]} 44. Ne7 {[%clk 0:00:28.9]}
44... Nb2+ {[%clk 0:00:03.5]} 45. Kb3 {[%clk 0:00:27.2]} 45... d3 {[%clk
0:00:03.9]} 46. Nxc8 {[%clk 0:00:24.8]} 46... dxc2 {[%clk 0:00:04.4]} 47. Kxc2
{[%clk 0:00:25.7]} 47... Nc4 {[%clk 0:00:04.7]} 48. Kc3 {[%clk 0:00:23]} 48...
Nxa3 {[%clk 0:00:03.2]} 49. Kb3 {[%clk 0:00:23.9]} 49... Nb5 {[%clk 0:00:03.4]}
50. Kc4 {[%clk 0:00:13.3]} 50... a6 {[%clk 0:00:03.7]} 51. Kc5 {[%clk
0:00:06.2]} 51... Nxc7 {[%clk 0:00:04.6]} 52. Nd6 {[%clk 0:00:05.5]} 52... Kf6
{[%clk 0:00:04.1]} 53. Kb6 {[%clk 0:00:05.3]} 53... Nd5+ {[%clk 0:00:04.1]} 54.
Kxa6 {[%clk 0:00:05.8]} 54... Ke6 {[%clk 0:00:04.4]} 55. Ne4 {[%clk 0:00:05.3]}
55... Ke5 {[%clk 0:00:04.9]} 56. Ng5 {[%clk 0:00:05.2]} 56... f6 {[%clk
0:00:04.7]} 57. Nf7+ {[%clk 0:00:04.5]} 57... Ke6 {[%clk 0:00:05]} 0-1

[Event "Early-Titled-Tuesday-Blitz-April-16-2024"]
[Site "Chess.com"]
[Date "2024.04.16"]
[Round "3"]
[White "Rud_Makarian"]
[Black "Korchmar_Vasiliy"]
[Result "1-0"]
[WhiteElo "3025"]
[BlackElo "2706"]
[TimeControl "180+1"]
[EndTime "8:29:49 PDT"]
[Termination "Rud_Makarian won on time"]

1. Nf3 {[%clk 0:02:59.6]} 1... d5 {[%clk 0:02:59.8]} 2. g3 {[%clk 0:02:59.4]}
2... g6 {[%clk 0:02:59.6]} 3. c4 {[%clk 0:02:59.3]} 3... c6 {[%clk 0:02:55.7]}
4. Qa4 {[%clk 0:02:58.9]} 4... dxc4 {[%clk 0:02:55.4]} 5. Qxc4 {[%clk
0:02:59.5]} 5... Bg7 {[%clk 0:02:56]} 6. Bg2 {[%clk 0:02:57]} 6... Nh6 {[%clk
0:02:56.4]} 7. O-O {[%clk 0:02:56]} 7... Nf5 {[%clk 0:02:56.8]} 8. e3 {[%clk
0:02:44.6]} 8... O-O {[%clk 0:02:56.9]} 9. Qe2 {[%clk 0:02:44]} 9... b6 {[%clk
0:02:38.9]} 10. Rd1 {[%clk 0:02:38.4]} 10... Ba6 {[%clk 0:02:38.8]} 11. d3
{[%clk 0:02:39.3]} 11... Nd7 {[%clk 0:02:39.4]} 12. Qc2 {[%clk 0:02:14.5]} 12...
Rc8 {[%clk 0:02:34.3]} 13. Nc3 {[%clk 0:02:13.1]} 13... c5 {[%clk 0:02:31.8]}
14. Nd2 {[%clk 0:02:07.2]} 14... Qc7 {[%clk 0:02:07.7]} 15. a4 {[%clk
0:02:04.6]} 15... Bb7 {[%clk 0:02:05.9]} 16. Nb5 {[%clk 0:01:55]} 16... Qb8
{[%clk 0:02:04.6]} 17. e4 {[%clk 0:01:54.8]} 17... Nd4 {[%clk 0:01:57]} 18. Nxd4
{[%clk 0:01:55.2]} 18... cxd4 {[%clk 0:01:54.9]} 19. Qb1 {[%clk 0:01:54.6]}
19... a5 {[%clk 0:01:31.3]} 20. Nc4 {[%clk 0:01:49.7]} 20... Ba6 {[%clk
0:01:30.7]} 21. b3 {[%clk 0:01:47.3]} 21... Nc5 {[%clk 0:01:24.4]} 22. Ba3
{[%clk 0:01:42.7]} 22... Bxc4 {[%clk 0:01:17]} 23. bxc4 {[%clk 0:01:38.1]} 23...
Nxa4 {[%clk 0:01:15.9]} 24. Bd6 {[%clk 0:00:59.7]} 24... Qxd6 {[%clk 0:01:01.6]}
25. Rxa4 {[%clk 0:00:59.7]} 25... e5 {[%clk 0:00:50.6]} 26. h4 {[%clk
0:00:58.5]} 26... Rc5 {[%clk 0:00:39.5]} 27. Rd2 {[%clk 0:00:57.6]} 27... Rb8
{[%clk 0:00:39.4]} 28. Rb2 {[%clk 0:00:56.6]} 28... Qc7 {[%clk 0:00:30.9]} 29.
Kh2 {[%clk 0:00:53.7]} 29... Bf8 {[%clk 0:00:28.3]} 30. h5 {[%clk 0:00:48.3]}
30... Kg7 {[%clk 0:00:27.8]} 31. Qc1 {[%clk 0:00:46.5]} 31... Be7 {[%clk
0:00:24.3]} 32. h6+ {[%clk 0:00:35.1]} 32... Kg8 {[%clk 0:00:24.6]} 33. Qd2
{[%clk 0:00:33.5]} 33... Qd8 {[%clk 0:00:22.6]} 34. Qd1 {[%clk 0:00:23.3]} 34...
Bg5 {[%clk 0:00:20.9]} 35. Bf3 {[%clk 0:00:20.1]} 35... Bxh6 {[%clk 0:00:20.9]}
36. Kg2 {[%clk 0:00:21]} 36... Bf8 {[%clk 0:00:20.9]} 37. Ra1 {[%clk 0:00:21.2]}
37... h5 {[%clk 0:00:19.9]} 38. Rab1 {[%clk 0:00:19.6]} 38... Rc6 {[%clk
0:00:15.4]} 39. Qe2 {[%clk 0:00:19.1]} 39... Bc5 {[%clk 0:00:14.7]} 40. Rh1
{[%clk 0:00:18.7]} 40... Qg5 {[%clk 0:00:14]} 41. Rbb1 {[%clk 0:00:17.4]} 41...
a4 {[%clk 0:00:14]} 42. Bxh5 {[%clk 0:00:13.2]} 42... gxh5 {[%clk 0:00:13.9]}
43. Rxh5 {[%clk 0:00:14.1]} 43... Qg7 {[%clk 0:00:12.9]} 44. Rbh1 {[%clk
0:00:13.9]} 44... a3 {[%clk 0:00:11.6]} 45. Qa2 {[%clk 0:00:09]} 45... Ra8
{[%clk 0:00:08.9]} 46. R1h4 {[%clk 0:00:09.2]} 46... Rg6 {[%clk 0:00:09]} 47.
Rh1 {[%clk 0:00:07]} 47... Qf6 {[%clk 0:00:07.4]} 48. Qb3 {[%clk 0:00:05.3]}
48... a2 {[%clk 0:00:06.9]} 49. Ra1 {[%clk 0:00:05]} 49... Rh6 {[%clk
0:00:04.1]} 50. Rf5 {[%clk 0:00:04.7]} 50... Qh8 {[%clk 0:00:04.4]} 51. Rxa2
{[%clk 0:00:05.4]} 51... Rh2+ {[%clk 0:00:04.4]} 52. Kf3 {[%clk 0:00:05.3]}
52... Rxa2 {[%clk 0:00:03]} 53. Qxa2 {[%clk 0:00:06]} 1-0